fUST/lending_fUST_20241215
["ID","MTS","AMOUNT","RATE_DAILY","PERIOD"]
[345362496,1734192632043,-4575.70996648,0.000213,2]
[345362498,1734192632052,-165.56724,0.00022174,2]
[345362500,1734192632061,-234.25928356,0.000249,2]
[345362502,1734192632071,-170.0,0.00025,2]
[345362504,1734192632080,-160.0,0.00025,2]
[345362506,1734192632089,-198.380544,0.00026518,2]
[345362508,1734192632098,-382.081,0.0002707,2]
[345362510,1734192632108,-300.0,0.00027395,2]
[345362512,1734192632117,-300.0,0.00027395,2]
[345362514,1734192632130,-219.28873151,0.00027397,7]
[345362516,1734192632140,-500.0,0.00027397,7]
[345362518,1734192632150,-874.16,0.00027397,7]
[345362520,1734192632159,-500.0,0.00027397,2]
[345362522,1734192632172,-500.0,0.00027397,7]
[345362525,1734192632182,-1674.02,0.00027669,7]
[345362527,1734192632191,-222.72,0.00027669,7]
[345362529,1734192632201,-1013.97271977,0.00027669,2]
[345362531,1734192632211,-500.0,0.00027669,7]
[345362533,1734192632220,-302.77037113,0.00027669,7]
[345362535,1734192632230,-614.7210945,0.00027669,7]
[345362537,1734192632239,-252.77,0.00027669,7]
[345362539,1734192632248,-510.79,0.00027669,7]
[345362541,1734192632257,-600.49,0.00027669,7]
[345362543,1734192632265,-500.0,0.00027669,7]
[345362545,1734192632274,-500.0,0.00027669,5]
[345362547,1734192632284,-500.0,0.00027669,7]
[345362549,1734192632293,-507.32656772,0.00027669,7]
[345362550,1734192632303,-500.0,0.00027669,7]
[345362551,1734192632312,-1502.83379804,0.00027669,7]
[345362552,1734192632324,-763.64866924,0.00027669,7]
[345362553,1734192632335,-881.19753272,0.00027669,7]
[345362554,1734192632344,-31.1415518,0.00027671,7]
[345362572,1734192638241,-843.0184482,0.00027671,7]
[345362573,1734192638252,-325.07,0.00027671,2]
[345362574,1734192638262,-588.79518789,0.00027843,2]
[345362575,1734192638272,-3034.73836912,0.0002789,7]
[345362576,1734192638281,-1674.02,0.00027943,7]
[345362577,1734192638291,-500.0,0.00027943,7]
[345362578,1734192638301,-510.79,0.00027943,7]
[345362579,1734192638310,-600.49,0.00027943,7]
[345362580,1734192638319,-500.0,0.00027943,7]
[345362581,1734192638330,-500.0,0.00027943,5]
[345362582,1734192638339,-500.0,0.00027943,7]
[345362583,1734192638348,-3147.68,0.00027943,7]
[345362584,1734192638358,-500.0,0.00027944,7]
[345362585,1734192638367,-874.16,0.00027945,7]
[345362586,1734192638377,-160.222785,0.00027945,2]
[345362587,1734192638386,-250.0,0.0002806,2]
[345362588,1734192638396,-533.0,0.0002806,2]
[345362589,1734192638407,-2372.0,0.0002806,2]
[345362590,1734192638419,-2114.0,0.0002806,2]
[345362591,1734192638428,-170.614177,0.0002816,2]
[345362592,1734192638438,-588.79518786,0.00028163,2]
[345362593,1734192638447,-161.73911472,0.00028167,2]
[345362594,1734192638456,-36078.34818665,0.00028217,2]
[345362595,1734192638468,-1202.07445,0.00028217,2]
[345362596,1734192638479,-5230.58044492,0.00028217,2]
[345362609,1734192643118,-372.156,0.0002806,2]
[345362610,1734192643128,-88.344,0.00028217,2]
[345362632,1734192950182,165.386663,0.00013973,2]
[345362690,1734193770579,2933.29000734,0.00020222,2]
[345362706,1734193832257,-161.40590605,0.00022,10]
[345362707,1734193832267,-165.386663,0.00022174,2]
[345362708,1734193832276,-885.58222463,0.00022755,2]
[345362710,1734193832285,-755.81007654,0.00023,2]
[345362714,1734193832312,-392.99998,0.00023,2]
[345362745,1734193838322,-242.37643246,0.00023,2]
[345362746,1734193838332,-3696.3,0.0002581,2]
[345362747,1734193838341,-380.0,0.00025811,2]
[345362748,1734193838351,-308.1715779,0.00025811,2]
[345362749,1734193838360,-198.380544,0.00025839,2]
[345362750,1734193838370,-300.0,0.00025999,2]
[345362751,1734193838379,-300.0,0.00025999,2]
[345362752,1734193838388,-378.54995238,0.00026,2]
[345362753,1734193838398,-395.46266942,0.00026,4]
[345362755,1734193838408,-6942.87586628,0.00026,30]
[345362756,1734193838417,-206.09986425,0.0002671,2]
[345362757,1734193838428,-520.28310862,0.0002671,2]
[345362758,1734193838438,-380.338,0.0002681,2]
[345362759,1734193838447,-155.12834234,0.0002697,2]
[345362760,1734193838457,-1000.0,0.00027,27]
[345362761,1734193838467,-357.6220671,0.00027041,2]
[345362763,1734193838477,-500.0,0.00027397,7]
[345362764,1734193838486,-635.12535562,0.00027568,2]
[345362765,1734193838496,-160.22278501,0.00027589,2]
[345362766,1734193838504,-151.0,0.00027628,7]
[345362767,1734193838514,-151.0,0.00027628,7]
[345362768,1734193838523,-151.0,0.00027628,7]
[345362769,1734193838532,-151.0,0.00027628,7]
[345362770,1734193838541,-229.93512,0.00027628,7]
[345362771,1734193838551,-229.93512,0.00027628,7]
[345362772,1734193838560,-1145.988141,0.00027628,7]
[345362773,1734193838572,-1145.988141,0.00027628,7]
[345362774,1734193838582,-160.087137,0.00027628,7]
[345362775,1734193838592,-186.0,0.00027628,3]
[345362776,1734193838601,-186.0,0.00027628,3]
[345362777,1734193838611,-186.0,0.00027628,3]
[345362778,1734193838620,-186.0,0.00027628,3]
[345362779,1734193838631,-186.0,0.00027628,3]
[345362781,1734193838640,-186.0,0.00027628,3]
[345362782,1734193838650,-186.0,0.00027628,3]
[345362783,1734193838659,-186.0,0.00027628,3]
[345362784,1734193838668,-186.0,0.00027628,3]
[345362785,1734193838678,-186.0,0.00027628,3]
[345362786,1734193838687,-186.0,0.00027628,3]
[345362787,1734193838696,-186.0,0.00027628,3]
[345362788,1734193838706,-186.0,0.00027628,3]
[345362789,1734193838715,-186.0,0.00027628,3]
[345362790,1734193838724,-190.64,0.00027628,3]
[345362791,1734193838734,-307.106021,0.00027659,7]
[345362792,1734193838743,-307.106021,0.00027659,7]
[345362793,1734193838751,-176.13,0.00027659,2]
[345362794,1734193838761,-500.0,0.00027667,7]
[345362795,1734193838771,-500.0,0.00027667,7]
[345362796,1734193838780,-500.0,0.00027667,7]
[345362797,1734193838790,-1534.52,0.00027668,7]
[345362798,1734193838799,-151.0,0.00027668,7]
[345362799,1734193838809,-151.0,0.00027668,7]
[345362800,1734193838820,-10051.87979486,0.00027668,2]
[345362801,1734193838832,-151.0,0.00027668,7]
[345362802,1734193838846,-151.0,0.00027668,7]
[345362803,1734193838855,-151.0,0.00027668,7]
[345362804,1734193838865,-151.0,0.00027668,7]
[345362805,1734193838874,-229.93512,0.00027668,7]
[345362806,1734193838883,-229.93512,0.00027668,7]
[345362807,1734193838892,-1145.988141,0.00027668,7]
[345362808,1734193838901,-500.0,0.00027668,2]
[345362809,1734193838910,-1145.988141,0.00027668,7]
[345362810,1734193838919,-416.348746,0.00027668,7]
[345362811,1734193838929,-416.348746,0.00027668,7]
[345362812,1734193838939,-151.0,0.00027668,7]
[345362813,1734193838949,-267.522246,0.00027668,7]
[345362814,1734193838958,-151.0,0.00027668,7]
[345362815,1734193838971,-267.522246,0.00027668,7]
[345362816,1734193838980,-151.0,0.00027668,7]
[345362817,1734193838989,-2885.37,0.00027668,7]
[345362818,1734193838999,-151.0,0.00027668,7]
[345362819,1734193839009,-151.0,0.00027668,7]
[345362820,1734193839018,-151.0,0.00027668,7]
[345362821,1734193839027,-223.675866,0.00027668,7]
[345362822,1734193839036,-223.675866,0.00027668,7]
[345362823,1734193839046,-223.675866,0.00027668,7]
[345362824,1734193839056,-223.675866,0.00027668,7]
[345362825,1734193839065,-151.0,0.00027668,7]
[345362826,1734193839079,-151.0,0.00027668,7]
[345362827,1734193839087,-151.0,0.00027668,7]
[345362828,1734193839097,-500.0,0.00027669,2]
[345362829,1734193839107,-288.745402,0.00027669,7]
[345362830,1734193839117,-288.745402,0.00027669,7]
[345362831,1734193839127,-309.110328,0.00027669,7]
[345362832,1734193839138,-151.0,0.00027669,7]
[345362833,1734193839148,-309.110328,0.00027669,7]
[345362834,1734193839158,-151.0,0.00027669,7]
[345362835,1734193839168,-307.106021,0.00027669,7]
[345362836,1734193839178,-307.106021,0.00027669,7]
[345362837,1734193839187,-151.0,0.00027669,7]
[345362838,1734193839197,-151.0,0.00027669,7]
[345362839,1734193839207,-151.0,0.00027669,7]
[345362840,1734193839217,-151.0,0.00027669,7]
[345362841,1734193839226,-229.93512,0.00027669,7]
[345362842,1734193839235,-229.93512,0.00027669,7]
[345362843,1734193839245,-1145.988141,0.00027669,7]
[345362844,1734193839254,-1145.988141,0.00027669,7]
[345362845,1734193839369,-416.348746,0.00027669,7]
[345362846,1734193839383,-416.348746,0.00027669,7]
[345362847,1734193839393,-151.0,0.00027669,7]
[345362848,1734193839403,-267.522246,0.00027669,7]
[345362849,1734193839412,-151.0,0.00027669,7]
[345362850,1734193839422,-267.522246,0.00027669,7]
[345362851,1734193839432,-151.0,0.00027669,7]
[345362852,1734193839442,-151.0,0.00027669,7]
[345362853,1734193839452,-151.0,0.00027669,7]
[345362854,1734193839461,-223.675866,0.00027669,7]
[345362855,1734193839471,-223.675866,0.00027669,7]
[345362856,1734193839480,-223.675866,0.00027669,7]
[345362857,1734193839490,-223.675866,0.00027669,7]
[345362858,1734193839499,-151.0,0.00027669,7]
[345362859,1734193839509,-500.0,0.00027671,7]
[345362860,1734193839519,-635.1253556,0.00027928,2]
[345362861,1734193839528,-307.106021,0.00027928,7]
[345362862,1734193839538,-307.106021,0.00027928,7]
[345362863,1734193839548,-416.348746,0.00027928,7]
[345362864,1734193839557,-416.348746,0.00027928,7]
[345362865,1734193839568,-151.0,0.00027928,7]
[345362866,1734193839585,-267.522246,0.00027928,7]
[345362867,1734193839594,-151.0,0.00027928,7]
[345362868,1734193839604,-267.522246,0.00027928,7]
[345362869,1734193839614,-151.0,0.00027928,7]
[345362870,1734193839623,-151.0,0.00027929,7]
[345362871,1734193839632,-195.076182,0.00027929,7]
[345362872,1734193839642,-750.62,0.00027929,7]
[345362873,1734193839651,-1145.988141,0.00027929,7]
[345362874,1734193839660,-1145.988141,0.00027929,7]
[345362875,1734193839669,-500.0,0.00027929,5]
[345362876,1734193839678,-151.0,0.00027929,7]
[345362877,1734193839688,-223.675866,0.00027929,7]
[345362879,1734193839698,-223.675866,0.00027929,7]
[345362880,1734193839707,-151.0,0.00027929,7]
[345362882,1734193839716,-38.04304968,0.00027941,7]
[345362904,1734193846088,-461.95695032,0.00027941,7]
[345362905,1734193846098,-500.0,0.00027941,7]
[345362906,1734193846109,-500.0,0.00027941,7]
[345362907,1734193846119,-500.0,0.00027942,7]
[345362908,1734193846129,-1534.52,0.00027942,7]
[345362909,1734193846139,-525.65541777,0.00027942,2]
[345362910,1734193846149,-288.745402,0.00027942,7]
[345362911,1734193846158,-288.745402,0.00027942,7]
[345362912,1734193846167,-309.110328,0.00027942,7]
[345362913,1734193846176,-151.0,0.00027942,7]
[345362914,1734193846185,-309.110328,0.00027942,7]
[345362915,1734193846195,-151.0,0.00027942,7]
[345362916,1734193846204,-764.89,0.00027942,7]
[345362917,1734193846214,-151.0,0.00027942,7]
[345362918,1734193846224,-229.93512,0.00027942,7]
[345362919,1734193846234,-229.93512,0.00027942,7]
[345362920,1734193846243,-1145.988141,0.00027942,7]
[345362921,1734193846252,-1145.988141,0.00027942,7]
[345362922,1734193846261,-500.0,0.00027942,2]
[345362923,1734193846270,-416.348746,0.00027942,7]
[345362924,1734193846279,-416.348746,0.00027942,7]
[345362925,1734193846288,-151.0,0.00027942,7]
[345362926,1734193846296,-267.522246,0.00027942,7]
[345362927,1734193846306,-154.150752,0.00027942,7]
[345362928,1734193846314,-267.522246,0.00027942,7]
[345362929,1734193846323,-221.816036,0.00027942,7]
[345362930,1734193846337,-2885.37,0.00027942,7]
[345362931,1734193846346,-151.0,0.00027942,7]
[345362932,1734193846355,-223.675866,0.00027942,7]
[345362933,1734193846365,-223.675866,0.00027942,7]
[345362934,1734193846374,-151.0,0.00027942,7]
[345362935,1734193846383,-151.0,0.00027942,7]
[345362936,1734193846392,-54736.59156821,0.00027943,2]
[345362937,1734193846401,-288.745402,0.00027943,7]
[345362938,1734193846411,-288.745402,0.00027943,7]
[345362939,1734193846421,-309.110328,0.00027943,7]
[345362940,1734193846431,-151.0,0.00027943,7]
[345362941,1734193846439,-309.110328,0.00027943,7]
[345362942,1734193846449,-151.0,0.00027943,7]
[345362943,1734193846458,-307.106021,0.00027943,7]
[345362944,1734193846467,-307.106021,0.00027943,7]
[345362945,1734193846476,-307.106021,0.00027943,7]
[345362946,1734193846485,-307.106021,0.00027943,7]
[345362947,1734193846495,-151.0,0.00027943,7]
[345362948,1734193846503,-151.0,0.00027943,7]
[345362949,1734193846512,-151.0,0.00027943,7]
[345362950,1734193846521,-151.0,0.00027943,7]
[345362951,1734193846530,-151.0,0.00027943,7]
[345362952,1734193846540,-229.93512,0.00027943,7]
[345362953,1734193846550,-229.93512,0.00027943,7]
[345362954,1734193846559,-229.93512,0.00027943,7]
[345362955,1734193846568,-229.93512,0.00027943,7]
[345362956,1734193846582,-1145.988141,0.00027943,7]
[345362957,1734193846591,-1145.988141,0.00027943,7]
[345362958,1734193846601,-416.348746,0.00027943,7]
[345362959,1734193846610,-416.348746,0.00027943,7]
[345362960,1734193846619,-416.348746,0.00027943,7]
[345362961,1734193846629,-416.348746,0.00027943,7]
[345362962,1734193846638,-151.0,0.00027943,7]
[345362963,1734193846647,-151.0,0.00027943,7]
[345362964,1734193846656,-267.522246,0.00027943,7]
[345362965,1734193846665,-267.522246,0.00027943,7]
[345362966,1734193846674,-267.522246,0.00027943,7]
[345362967,1734193846683,-267.522246,0.00027943,7]
[345362968,1734193846692,-223.284219,0.00027943,7]
[345362969,1734193846701,-223.675866,0.00027943,7]
[345362970,1734193846711,-223.675866,0.00027943,7]
[345362971,1734193846720,-223.675866,0.00027943,7]
[345362972,1734193846730,-223.675866,0.00027943,7]
[345362973,1734193846739,-151.0,0.00027943,7]
[345362974,1734193846748,-151.0,0.00027945,7]
[345362975,1734193846757,-1145.988141,0.00027945,7]
[345362976,1734193846767,-1145.988141,0.00027945,7]
[345362977,1734193846777,-500.0,0.00027945,7]
[345362978,1734193846786,-160.22278501,0.00027945,2]
[345362979,1734193846795,-1000.0,0.00028,28]
[345362980,1734193846805,-500.0,0.0002803,7]
[345362981,1734193846815,-288.745402,0.00028031,7]
[345362982,1734193846824,-288.745402,0.00028031,7]
[345362983,1734193846839,-309.110328,0.00028031,7]
[345362984,1734193846848,-151.0,0.00028031,7]
[345362985,1734193846858,-151.0,0.00028031,7]
[345362986,1734193846868,-309.110328,0.00028031,7]
[345362987,1734193846878,-162.775496,0.00028031,7]
[345362988,1734193846888,-307.106021,0.00028031,7]
[345362989,1734193846898,-307.106021,0.00028031,7]
[345362990,1734193846907,-151.0,0.00028031,7]
[345362991,1734193846917,-151.0,0.00028031,7]
[345362992,1734193846927,-151.0,0.00028031,7]
[345362993,1734193846937,-151.0,0.00028031,7]
[345362994,1734193846946,-229.93512,0.00028031,7]
[345362995,1734193846956,-229.93512,0.00028031,7]
[345362996,1734193846966,-229.93512,0.00028031,7]
[345362997,1734193846980,-229.93512,0.00028031,7]
[345362998,1734193846990,-1145.988141,0.00028031,7]
[345362999,1734193847000,-1145.988141,0.00028031,7]
[345363000,1734193847010,-1145.988141,0.00028031,7]
[345363001,1734193847021,-1145.988141,0.00028031,7]
[345363002,1734193847031,-416.348746,0.00028031,7]
[345363003,1734193847040,-416.348746,0.00028031,7]
[345363004,1734193847052,-416.348746,0.00028031,7]
[345363005,1734193847062,-416.348746,0.00028031,7]
[345363006,1734193847071,-151.0,0.00028031,7]
[345363007,1734193847085,-151.0,0.00028031,7]
[345363008,1734193847095,-267.522246,0.00028031,7]
[345363009,1734193847104,-267.522246,0.00028031,7]
[345363010,1734193847114,-267.522246,0.00028031,7]
[345363011,1734193847123,-267.522246,0.00028031,7]
[345363012,1734193847132,-223.675866,0.00028031,7]
[345363013,1734193847141,-223.675866,0.00028031,7]
[345363014,1734193847151,-223.675866,0.00028031,7]
[345363015,1734193847161,-223.675858,0.00028031,7]
[345363016,1734193847170,-533.0,0.00028031,2]
[345363017,1734193847179,-2160.0,0.00028031,2]
[345363018,1734193847188,-2370.0,0.00028031,2]
[345363019,1734193847198,-500.0,0.00028058,2]
[345363020,1734193847207,-500.0,0.00028058,2]
[345363021,1734193847216,-500.0,0.00028058,2]
[345363022,1734193847225,-416.21697125,0.00028058,2]
[345363023,1734193847235,-500.0,0.00028058,2]
[345363024,1734193847244,-500.0,0.00028058,2]
[345363025,1734193847253,-500.0,0.00028058,2]
[345363026,1734193847263,-251.58599426,0.00028058,2]
[345363027,1734193847273,-605.3657253,0.00028058,2]
[345363028,1734193847283,-247.17825148,0.00028058,2]
[345363029,1734193847293,-500.0,0.00028058,2]
[345363030,1734193847302,-500.0,0.00028058,2]
[345363031,1734193847311,-500.0,0.00028058,2]
[345363032,1734193847321,-500.0,0.00028058,2]
[345363033,1734193847333,-500.0,0.00028058,2]
[345363034,1734193847343,-500.0,0.00028058,2]
[345363035,1734193847352,-500.0,0.00028058,2]
[345363036,1734193847361,-500.0,0.00028058,2]
[345363037,1734193847370,-500.0,0.00028058,2]
[345363038,1734193847379,-500.0,0.00028058,2]
[345363039,1734193847389,-500.0,0.00028058,2]
[345363040,1734193847398,-500.0,0.00028058,2]
[345363041,1734193847408,-500.0,0.00028058,2]
[345363042,1734193847417,-500.0,0.00028058,2]
[345363043,1734193847427,-500.0,0.00028058,2]
[345363044,1734193847436,-500.0,0.00028058,2]
[345363045,1734193847446,-500.0,0.00028058,2]
[345363046,1734193847455,-500.0,0.00028058,2]
[345363047,1734193847464,-500.0,0.00028058,2]
[345363048,1734193847474,-500.0,0.00028058,2]
[345363049,1734193847483,-500.0,0.00028058,2]
[345363050,1734193847492,-500.0,0.00028058,2]
[345363051,1734193847501,-500.0,0.00028058,2]
[345363052,1734193847511,-500.0,0.00028058,2]
[345363053,1734193847521,-500.0,0.00028058,2]
[345363054,1734193847530,-500.0,0.00028058,2]
[345363055,1734193847540,-500.0,0.00028058,2]
[345363056,1734193847550,-500.0,0.00028058,2]
[345363057,1734193847560,-500.0,0.00028058,2]
[345363058,1734193847570,-500.0,0.00028058,2]
[345363059,1734193847581,-500.0,0.00028058,2]
[345363060,1734193847591,-500.0,0.00028058,2]
[345363061,1734193847600,-500.0,0.00028058,2]
[345363062,1734193847609,-500.0,0.00028058,2]
[345363063,1734193847619,-500.0,0.00028058,2]
[345363064,1734193847629,-500.0,0.00028058,2]
[345363065,1734193847638,-500.0,0.00028058,2]
[345363066,1734193847648,-500.0,0.00028058,2]
[345363067,1734193847657,-500.0,0.00028058,2]
[345363068,1734193847667,-500.0,0.00028058,2]
[345363069,1734193847676,-500.0,0.00028058,2]
[345363070,1734193847685,-500.0,0.00028058,2]
[345363071,1734193847694,-500.0,0.00028058,2]
[345363072,1734193847704,-500.0,0.00028058,2]
[345363073,1734193847713,-500.0,0.00028058,2]
[345363074,1734193847723,-500.0,0.00028058,2]
[345363075,1734193847732,-500.0,0.00028058,2]
[345363076,1734193847741,-500.0,0.00028058,2]
[345363077,1734193847750,-500.0,0.00028058,2]
[345363078,1734193847760,-500.0,0.00028058,2]
[345363079,1734193847769,-151.0,0.00028059,7]
[345363080,1734193847778,-151.0,0.00028059,7]
[345363081,1734193847788,-151.0,0.00028059,7]
[345363082,1734193847798,-307.106021,0.00028059,7]
[345363083,1734193847808,-307.106021,0.00028059,7]
[345363084,1734193847818,-151.0,0.00028059,7]
[345363085,1734193847829,-151.0,0.00028059,7]
[345363086,1734193847839,-151.0,0.00028059,7]
[345363087,1734193847848,-1145.988141,0.00028059,7]
[345363088,1734193847858,-1145.988139,0.00028059,7]
[345363089,1734193847867,-416.348746,0.00028059,7]
[345363090,1734193847876,-416.348746,0.00028059,7]
[345363091,1734193847885,-151.0,0.00028059,7]
[345363092,1734193847894,-267.522246,0.00028059,7]
[345363093,1734193847903,-267.522246,0.00028059,7]
[345363094,1734193847912,-161.73911472,0.00028116,2]
[345363095,1734193847921,-420.0,0.00028137,2]
[345363096,1734193847930,-288.745402,0.00028166,7]
[345363097,1734193847939,-288.745402,0.00028166,7]
[345363098,1734193847948,-309.110328,0.00028166,7]
[345363099,1734193847958,-151.0,0.00028166,7]
[345363100,1734193847967,-309.110328,0.00028166,7]
[345363101,1734193847981,-229.93512,0.00028203,7]
[345363102,1734193847991,-229.93512,0.00028203,7]
[345363103,1734193848000,-750.62,0.00028203,7]
[345363104,1734193848010,-500.0,0.00028203,5]
[345363105,1734193848021,-416.348746,0.00028203,7]
[345363106,1734193848031,-416.348737,0.00028203,7]
[345363107,1734193848041,-151.0,0.00028203,7]
[345363108,1734193848051,-267.522246,0.00028203,7]
[345363109,1734193848062,-267.522252,0.00028203,7]
[345363110,1734193848072,-500.0,0.00028215,7]
[345363111,1734193848086,-500.0,0.00028215,7]
[345363112,1734193848098,-479.53062607,0.00028216,7]
[345363113,1734193848108,-1534.52,0.00028216,7]
[345363114,1734193848118,-288.745402,0.00028216,7]
[345363115,1734193848128,-288.745402,0.00028216,7]
[345363116,1734193848137,-309.110328,0.00028216,7]
[345363117,1734193848146,-151.0,0.00028216,7]
[345363118,1734193848155,-309.110328,0.00028216,7]
[345363119,1734193848164,-307.106021,0.00028216,7]
[345363120,1734193848175,-307.106021,0.00028216,7]
[345363121,1734193848184,-307.106021,0.00028216,7]
[345363122,1734193848193,-307.106021,0.00028216,7]
[345363123,1734193848203,-764.89,0.00028216,7]
[345363124,1734193848212,-151.0,0.00028216,7]
[345363125,1734193848222,-151.0,0.00028216,7]
[345363126,1734193848232,-192.85169,0.00028216,7]
[345363127,1734193848241,-229.93512,0.00028216,7]
[345363128,1734193848251,-229.935112,0.00028216,7]
[345363129,1734193848261,-290.69,0.00028216,2]
[345363130,1734193848271,-2885.37,0.00028216,7]
[345363131,1734193848280,-500.0,0.00028216,7]
[345363132,1734193848289,-155.127811,0.00028217,7]
[345363133,1734193848299,-151.0,0.00028217,7]
[345363134,1734193848308,-151.0,0.00028217,7]
[345363135,1734193848318,-288.745402,0.00028217,7]
[345363136,1734193848328,-288.745402,0.00028217,7]
[345363137,1734193848344,-309.110328,0.00028217,7]
[345363138,1734193848354,-151.0,0.00028217,7]
[345363139,1734193848369,-309.110328,0.00028217,7]
[345363140,1734193848379,-307.106021,0.00028217,7]
[345363141,1734193848388,-307.106014,0.00028217,7]
[345363142,1734193848399,-151.0,0.00028217,7]
[345363143,1734193848408,-500.0,0.00028219,7]
[345363144,1734193848417,-500.0,0.00028241,5]
[345363145,1734193848517,-500.0,0.00028241,5]
[345363146,1734193848527,-151.0,0.00028241,7]
[345363147,1734193848536,-500.0,0.00028262,7]
[345363148,1734193848547,-500.0,0.00028262,7]
[345363149,1734193848557,-500.0,0.00028263,7]
[345363150,1734193848567,-500.0,0.00028263,7]
[345363151,1734193848577,-500.0,0.00028264,7]
[345363152,1734193848586,-500.0,0.00028264,7]
[345363153,1734193848596,-151.0,0.00028265,7]
[345363154,1734193848606,-151.0,0.00028265,7]
[345363155,1734193848615,-151.0,0.00028265,7]
[345363156,1734193848624,-151.0,0.00028265,7]
[345363157,1734193848634,-151.0,0.00028265,7]
[345363158,1734193848643,-151.0,0.00028265,7]
[345363159,1734193848652,-151.0,0.00028265,7]
[345363160,1734193848661,-151.0,0.00028265,7]
[345363161,1734193848671,-151.0,0.00028265,7]
[345363162,1734193848680,-151.0,0.00028265,7]
[345363163,1734193848690,-151.0,0.00028265,7]
[345363164,1734193848699,-151.0,0.00028265,7]
[345363165,1734193848709,-180.080697,0.00028265,7]
[345363166,1734193848718,-288.745402,0.00028265,7]
[345363167,1734193848727,-288.745402,0.00028265,7]
[345363168,1734193848738,-288.745402,0.00028265,7]
[345363169,1734193848747,-288.745402,0.00028265,7]
[345363170,1734193848757,-288.745402,0.00028265,7]
[345363171,1734193848766,-288.745395,0.00028265,7]
[345363172,1734193848775,-309.110328,0.00028265,7]
[345363173,1734193848785,-309.110328,0.00028265,7]
[345363174,1734193848794,-309.110328,0.00028265,7]
[345363175,1734193848804,-309.110328,0.00028265,7]
[345363176,1734193848814,-309.110328,0.00028265,7]
[345363177,1734193848824,-309.110318,0.00028265,7]
[345363178,1734193848844,-500.0,0.00028265,7]
[345363179,1734193848853,-500.0,0.00028265,7]
[345363180,1734193848863,-151.0,0.00028266,7]
[345363181,1734193848873,-500.0,0.00028266,7]
[345363182,1734193848884,-500.0,0.00028266,7]
[345363183,1734193848894,-41664.58241341,0.00028267,2]
[345363184,1734193848903,-500.0,0.00028273,5]
[345363185,1734193848913,-500.0,0.00028273,5]
[345363186,1734193848922,-500.0,0.00028273,5]
[345363187,1734193848932,-500.0,0.00028273,5]
[345363188,1734193848942,-500.0,0.00028273,5]
[345363189,1734193848952,-250.65262315,0.00028273,5]
[345363190,1734193848961,-500.0,0.00028273,5]
[345363191,1734193848972,-448.85281003,0.00028273,5]
[345363192,1734193848983,-500.0,0.00028273,5]
[345363193,1734193848992,-635.1253556,0.00028287,2]
[345363194,1734193849002,-160.22278501,0.00028301,2]
[345363195,1734193849012,-170.614177,0.00028338,2]
[345363196,1734193849023,-2019.12965846,0.000284,7]
[345363197,1734193849033,-161.73911472,0.000284,2]
[345363198,1734193849042,-500.65969643,0.00028473,5]
[345363199,1734193849054,-750.62,0.00028476,7]
[345363200,1734193849063,-500.0,0.00028476,5]
[345363201,1734193849073,-500.0,0.00028489,7]
[345363202,1734193849085,-500.0,0.00028489,7]
[345363203,1734193849095,-1534.52,0.0002849,7]
[345363204,1734193849104,-764.89,0.0002849,7]